[Event "36th Belgrade Trophy 2023"]
[Site "Belgrade"]
[Date "2023.11.26"]
[Round "2.12"]
[White "Garifulin, Yury"]
[Black "Martic, Ivan"]
[Result "1/2-1/2"]
[ECO "B90"]
[WhiteElo "1956"]
[BlackElo "2292"]
[Annotator "RC"]
[PlyCount "135"]
[EventDate "2023.10.23"]
[EventType "swiss"]
[EventCountry "SRB"]
[SourceTitle "playchess.com"]
[Source "ChessBase"]
[SourceQuality "1"]
[TimeControl "40/5400+30:900+30"]

1. e4 {[%emt 0:00:06]} c5 {[%emt 0:00:13]} 2. Nf3 {[%emt 0:00:09]} d6 {[%emt 0:00:08]} 3. d4 {[%emt 0:00:10]} cxd4 {[%emt 0:00:05]} 4. Nxd4 {[%emt 0:00:07]} Nf6 {[%emt 0:00:05]} 5. Nc3 {[%emt 0:00:10]} a6 {[%emt 0:00:06]} 6. Be3 {[%emt 0:00:07]} e5 {[%emt 0:00:12]} 7. Nb3 {[%emt 0:00:08]} Be7 {[%emt 0:00:33]} 8. f3 {[%emt 0:00:22]} Be6 {[%emt 0:00:16]} 9. Qd2 {[%emt 1:33:41]} h5 {[%emt 1:33:22]} 10. O-O-O {[%emt 0:00:00]} Nbd7 {[%emt 0:00:30]} 11. Nd5 {[%emt 0:01:00]} Nxd5 {[%emt 0:00:00]} 12. exd5 {[%emt 0:00:00]} Bf5 {[%emt 0:01:00]} 13. Kb1 {[%emt 0:00:00]} O-O {[%emt 0:00:30]} 14. Bd3 {[%emt 0:00:00]} Bxd3 {[%emt 0:00:00]} 15. Qxd3 {[%emt 0:00:00]} Bg5 {[%emt 0:01:00]} 16. g4 {[%emt 0:02:30]} Bxe3 {[%emt 0:00:30]} 17. Qxe3 {[%emt 0:00:30]} hxg4 {[%emt 0:00:30]} 18. fxg4 {[%emt 0:00:30]} Nb6 {[%emt 0:00:30]} 19. h4 {[%emt 0:00:30]} Nc4 {[%emt 0:00:30]} 20. Qe2 {[%emt 0:00:30]} Rc8 {[%emt 0:00:30]} 21. g5 {[%emt 0:00:30]} Qb6 {[%emt 0:00:30]} 22. Rd3 {[%emt 0:00:30]} a5 {[%emt 0:00:30]} 23. a4 {[%emt 0:00:30]} Qb4 {[%emt 0:00:30]} 24. h5 {[%emt 0:00:30]} b5 {[%emt 0:00:30]} 25. h6 {[%emt 0:00:30]} g6 {[%emt 0:00:30]} 26. Qf2 {[%emt 0:00:30]} f5 {[%emt 0:00:30]} 27. gxf6 {[%emt 0:00:30]} Rc7 {[%emt 0:00:30]} 28. Qg3 {[%emt 0:00:30]} Kh7 {[%emt 0:00:30]} 29. Rg1 {[%emt 0:00:30]} Rg8 {[%emt 0:00:30]} 30. f7 {[%emt 0:00:30]} Rxf7 {[%emt 0:00:30]} 31. Rf3 {[%emt 0:00:30]} Rf4 {[%emt 0:00:30]} 32. Rxf4 {[%emt 0:00:00]} exf4 {[%emt 0:00:30]} 33. Qg5 {[%emt 0:01:00]} Ne5 {[%emt 0:00:30]} 34. Qe7+ {[%emt 0:00:30]} Kh8 {[%emt 0:00:30]} 35. h7 {[%emt 0:00:30]} Qe4 {[%emt 0:00:30]} 36. hxg8=Q+ {[%emt 0:00:00]} Kxg8 {[%emt 0:00:00]} 37. Qe6+ {[%emt 0:00:26]} Kg7 {[%emt 0:01:00]} 38. Qh3 {[%emt 0:01:04]} bxa4 {[%emt 0:00:00]} 39. Rh1 {[%emt 0:00:30]} Nf7 {[%emt 0:00:00]} 40. Nd2 {[%emt 0:00:00]} Qxd5 {[%emt 0:01:30]} 41. Rh2 {[%emt 0:16:00]} Qd4 {[%emt 0:15:30]} 42. Rg2 {[%emt 0:00:30]} Ne5 {[%emt 0:00:30]} 43. Qh4 {[%emt 0:00:00]} a3 {[%emt 0:00:00]} 44. bxa3 {[%emt 0:01:00]} Nf7 {[%emt 0:01:00]} 45. Qf2 {[%emt 0:00:30]} Qxf2 {[%emt 0:00:30]} 46. Rxf2 {[%emt 0:00:30]} g5 {[%emt 0:00:30]} 47. Kc1 {[%emt 0:00:30]} Kg6 {[%emt 0:00:30]} 48. Kd1 {[%emt 0:00:30]} Kf5 {[%emt 0:00:30]} 49. Nc4 {[%emt 0:00:30]} g4 {[%emt 0:00:30]} 50. Ke2 {[%emt 0:00:30]} g3 {[%emt 0:00:30]} 51. Rg2 {[%emt 0:00:00]} Kg4 {[%emt 0:00:00]} 52. Nd2 {[%emt 0:00:20]} Ne5 {[%emt 0:01:00]} 53. Rg1 {[%emt 0:01:10]} f3+ {[%emt 0:00:30]} 54. Ke3 {[%emt 0:00:30]} d5 {[%emt 0:00:00]} 55. Nf1 {[%emt 0:00:00]} Nc4+ {[%emt 0:00:00]} 56. Kd4 {[%emt 0:00:27]} g2 {[%emt 0:00:00]} 57. Kxd5 {[%emt 0:00:29]} Nxa3 {[%emt 0:02:00]} 58. Ke4 {[%emt 0:00:32]} Nxc2 {[%emt 0:00:00]} 59. Nh2+ {[%emt 0:00:22]} Kg3 {[%emt 0:00:00]} 60. Nxf3 {[%emt 0:00:09]} Kf2 {[%emt 0:01:30]} 61. Rb1 {[%emt 0:00:57]} Nd4 {[%emt 0:00:00]} 62. Rb2+ {[%emt 0:00:31]} Ne2 {[%emt 0:00:00]} 63. Ra2 {[%emt 0:01:03]} a4 {[%emt 0:00:00]} 64. Rb2 {[%emt 0:00:30]} Kf1 {[%emt 0:00:00]} 65. Rb1+ {[%emt 0:00:00]} Kf2 {[%emt 0:02:30]} 66. Rb2 {[%emt 0:00:28]} Kf1 {[%emt 0:00:00]} 67. Nh2+ {[%emt 0:00:27]} Kf2 {[%emt 0:00:00]} 68. Nf3 {[%emt 0:01:05]} 1/2-1/2

[Event "36th Belgrade Trophy 2023"]
[Site "Belgrade"]
[Date "2023.11.26"]
[Round "2.13"]
[White "Savic, Dragoljub"]
[Black "Liu, Zexu"]
[Result "0-1"]
[ECO "D71"]
[WhiteElo "1934"]
[BlackElo "2286"]
[Annotator "RC"]
[PlyCount "86"]
[EventDate "2023.10.23"]
[EventType "swiss"]
[EventCountry "SRB"]
[SourceTitle "playchess.com"]
[Source "ChessBase"]
[SourceQuality "1"]
[TimeControl "40/5400+30:900+30"]

1. d4 {[%emt 0:06:04]} Nf6 {[%emt 0:00:15]} 2. c4 {[%emt 0:00:13]} g6 {[%emt 0:00:13]} 3. Nc3 {[%emt 0:00:07]} d5 {[%emt 0:00:09]} 4. cxd5 {[%emt 0:00:38]} Nxd5 {[%emt 0:00:06]} 5. g3 {[%emt 0:00:08]} Bg7 {[%emt 0:00:30]} 6. Bg2 {[%emt 0:00:10]} Nxc3 {[%emt 0:02:55]} 7. bxc3 {[%emt 0:00:06]} c5 {[%emt 0:00:14]} 8. e3 {[%emt 0:00:09]} O-O {[%emt 0:00:39]} 9. Ne2 {[%emt 0:00:16]} Qc7 {[%emt 0:08:21]} 10. O-O {[%emt 0:00:20]} Nc6 {[%emt 0:00:47]} 11. a4 {[%emt 0:01:00]} Rd8 {[%emt 0:00:26]} 12. Ba3 {[%emt 0:00:54]} b6 {[%emt 0:00:36]} 13. Nf4 {[%emt 0:17:10]} Ba6 {[%emt 0:09:27]} 14. Re1 {[%emt 0:00:42]} Rac8 {[%emt 0:00:06]} 15. Qf3 {[%emt 0:11:50]} Bc4 {[%emt 0:02:33]} 16. Qxc6 {[%emt 0:07:22]} Qxc6 {[%emt 0:00:23]} 17. Bxc6 {[%emt 0:00:04]} Rxc6 {[%emt 0:00:25]} 18. a5 {[%emt 0:00:34]} e5 {[%emt 0:00:16]} 19. Ne2 {[%emt 0:03:43]} exd4 {[%emt 0:00:57]} 20. cxd4 {[%emt 0:00:09]} Bxe2 {[%emt 0:02:57]} 21. Rxe2 {[%emt 0:00:03]} cxd4 {[%emt 0:05:24]} 22. exd4 {[%emt 0:00:19]} Bxd4 {[%emt 0:01:06]} 23. Bb2 {[%emt 0:02:40]} Bc5 {[%emt 0:00:15]} 24. axb6 {[%emt 0:47:49]} Rxb6 {[%emt 0:05:21]} 25. Rae1 {[%emt 0:00:00]} Re6 {[%emt 0:05:17]} 26. Rxe6 {[%emt 0:00:00]} fxe6 {[%emt 0:00:09]} 27. Bc3 {[%emt 0:00:00]} Kf7 {[%emt 0:01:30]} 28. Re2 {[%emt 0:00:00]} Bb6 {[%emt 0:01:23]} 29. Kg2 {[%emt 0:00:00]} Rd5 {[%emt 0:02:34]} 30. Rb2 {[%emt 0:00:00]} g5 {[%emt 0:00:45]} 31. g4 {[%emt 0:00:00]} Ke7 {[%emt 0:00:19]} 32. h4 {[%emt 0:00:00]} gxh4 {[%emt 0:00:29]} 33. Bb4+ {[%emt 0:00:00]} Kd7 {[%emt 0:02:18]} 34. Kh3 {[%emt 0:00:00]} Bd8 {[%emt 0:01:53]} 35. Rb3 {[%emt 0:00:00]} a5 {[%emt 0:00:20]} 36. Bf8 {[%emt 0:00:16]} Ke8 {[%emt 0:01:48]} 37. Ba3 {[%emt 0:01:02]} a4 {[%emt 0:01:11]} 38. Re3 {[%emt 0:00:42]} Kd7 {[%emt 0:00:43]} 39. f4 {[%emt 0:00:56]} Rb5 {[%emt 0:13:07]} 40. g5 {[%emt 0:00:00]} Bc7 {[%emt 0:00:00]} 41. Rd3+ {[%emt 0:15:59]} Ke8 {[%emt 0:02:14]} 42. Bd6 {[%emt 0:01:15]} Rb3 {[%emt 0:00:27]} 43. Rxb3 {[%emt 0:01:39]} axb3 {[%emt 0:00:05]} 0-1

[Event "36th Belgrade Trophy 2023"]
[Site "Belgrade"]
[Date "2023.11.27"]
[Round "3.1"]
[White "Nenezic, Marko"]
[Black "Popovic, Aleksandar M"]
[Result "1-0"]
[ECO "E73"]
[WhiteElo "2499"]
[BlackElo "2149"]
[Annotator "RC"]
[PlyCount "73"]
[EventDate "2023.10.23"]
[EventType "swiss"]
[EventCountry "SRB"]
[SourceTitle "playchess.com"]
[Source "ChessBase"]
[SourceQuality "1"]
[TimeControl "40/5400+30:900+30"]

1. d4 {[%emt 0:00:23]} Nf6 {[%emt 0:05:06]} 2. c4 {[%emt 0:00:39]} g6 {[%emt 0:02:44]} 3. Nc3 {[%emt 0:00:24]} Bg7 {[%emt 0:00:04]} 4. e4 {[%emt 0:00:14]} d6 {[%emt 0:00:04]} 5. Be2 {[%emt 0:00:20]} O-O {[%emt 0:01:58]} 6. Be3 {[%emt 0:00:51]} c6 {[%emt 1:23:34]} 7. Nf3 {[%emt 1:31:09]} Ng4 {[%emt 0:00:00]} 8. Bg5 {[%emt 0:00:00]} h6 {[%emt 0:00:00]} 9. Bh4 {[%emt 0:00:00]} Qc7 {[%emt 0:00:00]} 10. h3 {[%emt 0:00:00]} Nf6 {[%emt 0:00:00]} 11. Bg3 {[%emt 0:02:00]} Nbd7 {[%emt 0:02:30]} 12. O-O {[%emt 0:00:00]} Qb6 {[%emt 0:00:00]} 13. Rb1 {[%emt 0:01:00]} Rd8 {[%emt 0:00:00]} 14. b4 {[%emt 0:00:30]} Nh5 {[%emt 0:01:30]} 15. Bh2 {[%emt 0:00:00]} e5 {[%emt 0:00:00]} 16. Re1 {[%emt 0:00:00]} Nf8 {[%emt 0:00:00]} 17. Qc1 {[%emt 0:00:00]} exd4 {[%emt 0:00:00]} 18. c5 {[%emt 0:00:00]} Qc7 {[%emt 0:00:00]} 19. cxd6 {[%emt 0:00:00]} Qd7 {[%emt 0:00:00]} 20. Na4 {[%emt 0:00:00]} b6 {[%emt 0:03:00]} 21. e5 {[%emt 0:00:00]} c5 {[%emt 0:00:30]} 22. Bd1 {[%emt 0:00:00]} Bb7 {[%emt 0:00:00]} 23. bxc5 {[%emt 0:00:00]} Bxf3 {[%emt 0:01:00]} 24. Bxf3 {[%emt 0:00:00]} Qxa4 {[%emt 0:00:00]} 25. Bxa8 {[%emt 0:00:02]} Rxa8 {[%emt 0:00:00]} 26. g4 {[%emt 0:03:00]} Rc8 {[%emt 0:00:00]} 27. Qd1 {[%emt 0:00:50]} Qxd1 {[%emt 0:00:00]} 28. Rexd1 {[%emt 0:00:38]} bxc5 {[%emt 0:00:00]} 29. gxh5 {[%emt 0:01:02]} g5 {[%emt 0:00:00]} 30. Rb7 {[%emt 0:01:15]} Ne6 {[%emt 0:00:00]} 31. Rc1 {[%emt 0:00:36]} d3 {[%emt 0:01:48]} 32. Kf1 {[%emt 0:00:25]} f5 {[%emt 0:01:23]} 33. Re7 {[%emt 0:00:50]} Nf8 {[%emt 0:00:56]} 34. d7 {[%emt 0:00:33]} Rd8 {[%emt 0:00:07]} 35. e6 {[%emt 0:00:07]} Nxe6 {[%emt 0:00:12]} 36. Rxe6 {[%emt 0:00:14]} Rxd7 {[%emt 0:00:01]} 37. Rd6 {[%emt 0:01:58]} 1-0

[Event "36th Belgrade Trophy 2023"]
[Site "Belgrade"]
[Date "2023.11.27"]
[Round "3.2"]
[White "Savic, Mihailo S"]
[Black "Stojanovic, Mihajlo"]
[Result "0-1"]
[ECO "C10"]
[WhiteElo "2157"]
[BlackElo "2490"]
[Annotator "RC"]
[PlyCount "114"]
[EventDate "2023.10.23"]
[EventType "swiss"]
[EventCountry "SRB"]
[SourceTitle "playchess.com"]
[Source "ChessBase"]
[SourceQuality "1"]
[TimeControl "40/5400+30:900+30"]

1. e4 {[%emt 0:13:35]} e6 {[%emt 0:00:06]} 2. d4 {[%emt 0:00:56]} d5 {[%emt 0:00:11]} 3. Nc3 {[%emt 0:00:38]} dxe4 {[%emt 0:11:24]} 4. Nxe4 {[%emt 0:00:25]} Nd7 {[%emt 0:00:04]} 5. Nf3 {[%emt 0:05:29]} Ngf6 {[%emt 0:00:08]} 6. Bd3 {[%emt 0:04:01]} c5 {[%emt 0:01:50]} 7. O-O {[%emt 0:07:05]} cxd4 {[%emt 0:00:28]} 8. Nxd4 {[%emt 0:00:34]} Be7 {[%emt 0:00:36]} 9. Nxf6+ {[%emt 0:04:07]} Nxf6 {[%emt 0:03:35]} 10. b3 {[%emt 0:02:05]} O-O {[%emt 0:01:24]} 11. Bb2 {[%emt 0:00:16]} Qc7 {[%emt 0:02:38]} 12. Qf3 {[%emt 0:02:16]} Bd7 {[%emt 0:06:28]} 13. Rfe1 {[%emt 0:01:14]} Rfe8 {[%emt 0:00:14]} 14. Nb5 {[%emt 0:09:18]} Qb6 {[%emt 0:02:39]} 15. Bd4 {[%emt 0:04:41]} Bc5 {[%emt 0:00:09]} 16. Bxf6 {[%emt 0:03:07]} Bxb5 {[%emt 0:01:24]} 17. Bxb5 {[%emt 0:04:04]} Qxb5 {[%emt 0:00:40]} 18. Qg3 {[%emt 0:08:17]} Bf8 {[%emt 0:03:19]} 19. Re5 {[%emt 0:00:21]} Qd7 {[%emt 0:00:23]} 20. Rg5 {[%emt 0:04:42]} g6 {[%emt 0:02:09]} 21. h4 {[%emt 0:00:58]} Bg7 {[%emt 0:02:15]} 22. Qe5 {[%emt 0:01:25]} Bxf6 {[%emt 0:02:04]} 23. Qxf6 {[%emt 0:00:05]} Rad8 {[%emt 0:00:21]} 24. Rg4 {[%emt 0:09:21]} e5 {[%emt 0:01:58]} 25. Qf3 {[%emt 0:14:00]} f5 {[%emt 0:05:15]} 26. Rc4 {[%emt 0:00:00]} b5 {[%emt 0:07:57]} 27. Rc5 {[%emt 0:00:00]} Qd4 {[%emt 0:06:00]} 28. Qc3 {[%emt 0:00:00]} Qxc3 {[%emt 0:00:16]} 29. Rxc3 {[%emt 0:00:00]} Rc8 {[%emt 0:00:12]} 30. Rxc8 {[%emt 0:00:00]} Rxc8 {[%emt 0:00:04]} 31. Rc1 {[%emt 0:00:00]} Kf7 {[%emt 0:03:17]} 32. Kf1 {[%emt 0:00:00]} Ke6 {[%emt 0:13:57]} 33. Ke2 {[%emt 0:00:00]} e4 {[%emt 0:02:10]} 34. Kd2 {[%emt 0:00:00]} Ke5 {[%emt 0:00:16]} 35. Ra1 {[%emt 0:00:00]} f4 {[%emt 0:04:56]} 36. a4 {[%emt 0:00:33]} b4 {[%emt 0:01:04]} 37. a5 {[%emt 0:01:13]} Kd4 {[%emt 0:03:11]} 38. Rd1 {[%emt 0:00:12]} Rc5 {[%emt 0:07:40]} 39. Kc1+ {[%emt 0:00:47]} Ke5 {[%emt 0:00:41]} 40. Rd7 {[%emt 0:00:00]} Rxa5 {[%emt 0:00:00]} 41. Rxh7 {[%emt 0:01:41]} Ra1+ {[%emt 0:00:26]} 42. Kd2 {[%emt 0:00:27]} Rg1 {[%emt 0:00:42]} 43. Re7+ {[%emt 0:04:23]} Kf5 {[%emt 0:10:31]} 44. Rf7+ {[%emt 0:01:45]} Kg4 {[%emt 0:00:57]} 45. Rg7 {[%emt 0:00:14]} Kxh4 {[%emt 0:00:44]} 46. Rxg6 {[%emt 0:00:17]} f3 {[%emt 0:01:12]} 47. g3+ {[%emt 0:04:18]} Kh3 {[%emt 0:00:08]} 48. Re6 {[%emt 0:00:08]} Kg2 {[%emt 0:02:53]} 49. Rxe4 {[%emt 0:01:58]} Kxf2 {[%emt 0:00:09]} 50. Rxb4 {[%emt 0:00:24]} Kxg3 {[%emt 0:00:30]} 51. Rb7 {[%emt 0:00:37]} f2 {[%emt 0:00:19]} 52. Rg7+ {[%emt 0:00:12]} Kh4 {[%emt 0:00:15]} 53. Rf7 {[%emt 0:01:50]} f1=Q {[%emt 0:00:13]} 54. Rxf1 {[%emt 0:00:02]} Rxf1 {[%emt 0:00:10]} 55. Kd3 {[%emt 0:00:21]} Kg5 {[%emt 0:00:31]} 56. Kd4 {[%emt 0:00:16]} Kf6 {[%emt 0:00:24]} 57. Kc5 {[%emt 0:00:04]} Rf3 {[%emt 0:10:33]} 0-1

[Event "36th Belgrade Trophy 2023"]
[Site "Belgrade"]
[Date "2023.11.27"]
[Round "3.3"]
[White "Bryakin, Mikhail"]
[Black "Belke, Frank"]
[Result "1-0"]
[ECO "A45"]
[WhiteElo "2478"]
[BlackElo "2121"]
[Annotator "RC"]
[PlyCount "107"]
[EventDate "2023.10.23"]
[EventType "swiss"]
[EventCountry "SRB"]
[SourceTitle "playchess.com"]
[Source "ChessBase"]
[SourceQuality "1"]
[TimeControl "40/5400+30:900+30"]

1. d4 {[%emt 0:20:21]} Nf6 {[%emt 0:00:01]} 2. Bg5 {[%emt 0:00:11]} c5 {[%emt 0:00:09]} 3. d5 {[%emt 0:00:05]} Ne4 {[%emt 0:00:16]} 4. Bf4 {[%emt 0:00:06]} Qb6 {[%emt 0:00:13]} 5. Bc1 {[%emt 0:00:08]} e6 {[%emt 0:04:26]} 6. f3 {[%emt 0:00:55]} Nf6 {[%emt 0:02:22]} 7. c4 {[%emt 0:00:21]} Bd6 {[%emt 0:01:17]} 8. e4 {[%emt 0:00:27]} exd5 {[%emt 0:09:51]} 9. cxd5 {[%emt 0:00:30]} Qc7 {[%emt 0:00:07]} 10. Ne2 {[%emt 0:04:34]} b5 {[%emt 0:01:59]} 11. Nbc3 {[%emt 0:06:06]} Ba6 {[%emt 0:00:24]} 12. a4 {[%emt 0:01:13]} b4 {[%emt 0:01:37]} 13. Nb5 {[%emt 1:02:03]} Bxb5 {[%emt 0:00:06]} 14. axb5 {[%emt 0:00:00]} O-O {[%emt 0:01:50]} 15. g3 {[%emt 0:00:00]} Re8 {[%emt 0:04:23]} 16. Qc2 {[%emt 0:00:00]} Qb7 {[%emt 0:07:35]} 17. Qc4 {[%emt 0:00:00]} a6 {[%emt 0:03:11]} 18. bxa6 {[%emt 0:00:00]} Nxa6 {[%emt 0:00:12]} 19. Bg2 {[%emt 0:00:00]} Nc7 {[%emt 0:07:56]} 20. Rxa8 {[%emt 0:00:00]} Nxa8 {[%emt 0:00:05]} 21. O-O {[%emt 0:00:00]} Nb6 {[%emt 0:00:17]} 22. Qb5 {[%emt 0:00:00]} Qc7 {[%emt 0:00:14]} 23. Bf4 {[%emt 0:00:00]} Bxf4 {[%emt 0:09:00]} 24. Nxf4 {[%emt 0:00:00]} Rb8 {[%emt 0:00:02]} 25. Rc1 {[%emt 0:00:00]} d6 {[%emt 0:00:54]} 26. Qc6 {[%emt 0:00:00]} Rc8 {[%emt 0:02:48]} 27. Qxc7 {[%emt 0:00:00]} Rxc7 {[%emt 0:00:01]} 28. Nd3 {[%emt 0:00:00]} Ra7 {[%emt 0:01:13]} 29. f4 {[%emt 0:00:00]} Kf8 {[%emt 0:03:53]} 30. e5 {[%emt 0:00:00]} dxe5 {[%emt 0:00:19]} 31. Rxc5 {[%emt 0:00:56]} e4 {[%emt 0:04:55]} 32. Nxb4 {[%emt 0:00:36]} Ra4 {[%emt 0:00:06]} 33. Rb5 {[%emt 0:01:37]} Nc4 {[%emt 0:00:07]} 34. Nc2 {[%emt 0:01:15]} Ra2 {[%emt 0:01:12]} 35. Rb4 {[%emt 0:01:13]} Nxb2 {[%emt 0:03:15]} 36. d6 {[%emt 0:00:36]} g6 {[%emt 0:02:07]} 37. Bxe4 {[%emt 0:00:46]} Na4 {[%emt 0:03:33]} 38. Nd4 {[%emt 0:02:00]} Nc3 {[%emt 0:04:41]} 39. Bc6 {[%emt 0:01:19]} Rd2 {[%emt 0:00:13]} 40. Bf3 {[%emt 0:00:00]} Ke8 {[%emt 0:00:00]} 41. Nc6 {[%emt 0:07:15]} Rxd6 {[%emt 0:13:37]} 42. Rb8+ {[%emt 0:00:23]} Kd7 {[%emt 0:00:02]} 43. Rb7+ {[%emt 0:00:28]} Ke8 {[%emt 0:01:21]} 44. Ne5 {[%emt 0:00:29]} Nfe4 {[%emt 0:01:37]} 45. Rxf7 {[%emt 0:01:20]} h5 {[%emt 0:10:27]} 46. Rc7 {[%emt 0:01:38]} Ra6 {[%emt 0:02:59]} 47. Rc4 {[%emt 0:02:39]} Ra1+ {[%emt 0:00:26]} 48. Kg2 {[%emt 0:00:06]} Ra2+ {[%emt 0:00:14]} 49. Kh3 {[%emt 0:00:12]} Nf2+ {[%emt 0:02:55]} 50. Kh4 {[%emt 0:00:12]} Nfd1 {[%emt 0:01:56]} 51. Kg5 {[%emt 0:01:00]} h4 {[%emt 0:03:34]} 52. Rc8+ {[%emt 0:01:18]} Ke7 {[%emt 0:00:08]} 53. Nxg6+ {[%emt 0:00:06]} Kd7 {[%emt 0:00:05]} 54. Bg4+ {[%emt 0:00:05]} 1-0

[Event "36th Belgrade Trophy 2023"]
[Site "Belgrade"]
[Date "2023.11.27"]
[Round "3.4"]
[White "Chelushkina, Irina"]
[Black "Kilic, Eray"]
[Result "0-1"]
[ECO "B50"]
[WhiteElo "2145"]
[BlackElo "2446"]
[Annotator "RC"]
[PlyCount "52"]
[EventDate "2023.10.23"]
[EventType "swiss"]
[EventCountry "SRB"]
[SourceTitle "playchess.com"]
[Source "ChessBase"]
[SourceQuality "1"]
[TimeControl "40/5400+30:900+30"]

1. e4 {[%emt 0:00:05]} c5 {[%emt 0:00:04]} 2. Nf3 {[%emt 0:00:13]} d6 {[%emt 0:00:05]} 3. c3 {[%emt 0:00:16]} Nf6 {[%emt 0:00:05]} 4. Be2 {[%emt 0:00:03]} g6 {[%emt 0:01:39]} 5. O-O {[%emt 0:00:21]} Bg7 {[%emt 0:00:05]} 6. d3 {[%emt 0:00:41]} O-O {[%emt 0:00:07]} 7. Be3 {[%emt 0:00:29]} Nc6 {[%emt 0:01:37]} 8. h3 {[%emt 0:00:23]} e5 {[%emt 0:03:13]} 9. Nbd2 {[%emt 0:04:20]} Qe7 {[%emt 0:02:25]} 10. Re1 {[%emt 0:00:43]} d5 {[%emt 0:03:23]} 11. Bg5 {[%emt 0:01:21]} d4 {[%emt 0:00:13]} 12. cxd4 {[%emt 0:07:06]} cxd4 {[%emt 0:00:27]} 13. Qb1 {[%emt 0:01:42]} h6 {[%emt 0:02:47]} 14. Bxf6 {[%emt 0:04:07]} Bxf6 {[%emt 0:00:08]} 15. Bd1 {[%emt 0:00:03]} Be6 {[%emt 0:02:44]} 16. Bb3 {[%emt 0:00:05]} Rfc8 {[%emt 0:00:22]} 17. Rc1 {[%emt 0:02:01]} a5 {[%emt 0:08:16]} 18. Bd5 {[%emt 0:08:38]} Bxd5 {[%emt 0:03:49]} 19. exd5 {[%emt 0:02:45]} Nb4 {[%emt 0:00:03]} 20. Nc4 {[%emt 0:00:06]} b5 {[%emt 0:00:28]} 21. d6 {[%emt 0:00:56]} Qe6 {[%emt 0:01:09]} 22. Na3 {[%emt 0:07:02]} Rxc1+ {[%emt 0:07:01]} 23. Qxc1 {[%emt 0:00:01]} Nxd3 {[%emt 0:00:19]} 24. Qc6 {[%emt 0:00:01]} Rc8 {[%emt 0:01:02]} 25. Qxb5 {[%emt 0:00:02]} e4 {[%emt 0:01:12]} 26. Nd2 {[%emt 0:03:11]} Nxf2 {[%emt 0:01:02]} 0-1

[Event "36th Belgrade Trophy 2023"]
[Site "Belgrade"]
[Date "2023.11.27"]
[Round "3.5"]
[White "Blagojevic, Dragisa"]
[Black "Janjic, Stefan"]
[Result "1-0"]
[ECO "E01"]
[WhiteElo "2438"]
[BlackElo "2116"]
[Annotator "RC"]
[PlyCount "49"]
[EventDate "2023.10.23"]
[EventType "swiss"]
[EventCountry "SRB"]
[SourceTitle "playchess.com"]
[Source "ChessBase"]
[SourceQuality "1"]
[TimeControl "40/5400+30:900+30"]

1. d4 {[%emt 1:31:00]} d5 {[%emt 0:00:23]} 2. c4 {[%emt 0:00:00]} e6 {[%emt 0:00:08]} 3. Nf3 {[%emt 0:00:00]} Nf6 {[%emt 0:00:21]} 4. g3 {[%emt 0:00:00]} h6 {[%emt 0:00:12]} 5. Bg2 {[%emt 0:02:00]} Bd6 {[%emt 1:31:56]} 6. O-O {[%emt 0:00:30]} O-O {[%emt 0:00:30]} 7. Nbd2 {[%emt 0:00:30]} b6 {[%emt 0:00:30]} 8. b3 {[%emt 0:00:30]} Bb7 {[%emt 0:00:00]} 9. Bb2 {[%emt 0:00:00]} c5 {[%emt 0:01:00]} 10. cxd5 {[%emt 0:01:00]} Bxd5 {[%emt 0:00:30]} 11. Qb1 {[%emt 0:00:00]} cxd4 {[%emt 0:00:00]} 12. Bxd4 {[%emt 0:01:00]} e5 {[%emt 0:01:00]} 13. Bb2 {[%emt 0:00:30]} Nbd7 {[%emt 0:00:00]} 14. Rd1 {[%emt 0:00:30]} Qe7 {[%emt 0:01:00]} 15. Nh4 {[%emt 0:00:30]} Bxg2 {[%emt 0:00:30]} 16. Kxg2 {[%emt 0:00:30]} g6 {[%emt 0:00:30]} 17. Ne4 {[%emt 0:00:30]} Nxe4 {[%emt 0:00:30]} 18. Nxg6 {[%emt 0:00:30]} fxg6 {[%emt 0:00:30]} 19. Qxe4 {[%emt 0:00:30]} Kh7 {[%emt 0:00:30]} 20. Qc6 {[%emt 0:00:30]} Qf7 {[%emt 0:00:30]} 21. f3 {[%emt 0:00:30]} e4 {[%emt 0:00:30]} 22. Rxd6 {[%emt 0:00:00]} exf3+ {[%emt 0:00:30]} 23. Qxf3 {[%emt 0:00:00]} Qe7 {[%emt 0:00:30]} 24. Qd3 {[%emt 0:00:00]} Nf6 {[%emt 0:00:30]} 25. Bxf6 {[%emt 0:00:00]} 1-0

[Event "36th Belgrade Trophy 2023"]
[Site "Belgrade"]
[Date "2023.11.27"]
[Round "3.6"]
[White "Jandric, Damjan"]
[Black "Atalik, Suat"]
[Result "0-1"]
[ECO "C78"]
[WhiteElo "2121"]
[BlackElo "2427"]
[Annotator "RC"]
[PlyCount "68"]
[EventDate "2023.10.23"]
[EventType "swiss"]
[EventCountry "SRB"]
[SourceTitle "playchess.com"]
[Source "ChessBase"]
[SourceQuality "1"]
[TimeControl "40/5400+30:900+30"]

1. e4 {[%emt 0:00:05]} e5 {[%emt 0:00:17]} 2. Nf3 {[%emt 0:00:07]} Nc6 {[%emt 0:00:26]} 3. Bb5 {[%emt 0:00:07]} a6 {[%emt 0:02:05]} 4. Ba4 {[%emt 0:00:07]} Bc5 {[%emt 0:00:54]} 5. O-O {[%emt 0:00:36]} d6 {[%emt 0:02:52]} 6. c3 {[%emt 0:00:29]} b5 {[%emt 0:00:28]} 7. Bb3 {[%emt 0:00:24]} Nf6 {[%emt 0:01:06]} 8. d4 {[%emt 0:12:02]} Bb6 {[%emt 0:01:09]} 9. Bg5 {[%emt 1:21:03]} h6 {[%emt 0:14:04]} 10. Bh4 {[%emt 0:00:00]} exd4 {[%emt 0:09:57]} 11. cxd4 {[%emt 0:00:00]} g5 {[%emt 0:00:16]} 12. Bg3 {[%emt 0:01:30]} Bg4 {[%emt 1:02:56]} 13. e5 {[%emt 0:00:00]} dxe5 {[%emt 0:00:30]} 14. dxe5 {[%emt 0:00:00]} Qxd1 {[%emt 0:00:00]} 15. Rxd1 {[%emt 0:00:00]} Ne4 {[%emt 0:01:00]} 16. Nc3 {[%emt 0:00:00]} Nxc3 {[%emt 0:00:00]} 17. bxc3 {[%emt 0:00:00]} Ne7 {[%emt 0:00:00]} 18. a4 {[%emt 0:00:00]} O-O {[%emt 0:00:00]} 19. h3 {[%emt 0:00:00]} Be6 {[%emt 0:00:00]} 20. Bxe6 {[%emt 0:00:00]} fxe6 {[%emt 0:00:00]} 21. Nd4 {[%emt 0:04:30]} Bxd4 {[%emt 0:00:00]} 22. Rxd4 {[%emt 0:00:00]} c5 {[%emt 0:00:00]} 23. Rd6 {[%emt 0:00:00]} Kf7 {[%emt 0:00:00]} 24. f3 {[%emt 0:00:00]} Nf5 {[%emt 0:00:00]} 25. Rd7+ {[%emt 0:00:00]} Ke8 {[%emt 0:00:00]} 26. Rb7 {[%emt 0:00:00]} Nxg3 {[%emt 0:00:00]} 27. axb5 {[%emt 0:00:00]} a5 {[%emt 0:00:00]} 28. b6 {[%emt 0:00:00]} Rf7 {[%emt 0:06:30]} 29. Rxf7 {[%emt 0:00:53]} Kxf7 {[%emt 0:00:00]} 30. Kf2 {[%emt 0:00:20]} Nf5 {[%emt 0:00:00]} 31. b7 {[%emt 0:01:07]} Rb8 {[%emt 0:00:00]} 32. Rxa5 {[%emt 0:00:05]} Rxb7 {[%emt 0:00:00]} 33. Rxc5 {[%emt 0:00:05]} Rb2+ {[%emt 0:00:00]} 34. Kg1 {[%emt 0:00:19]} Nh4 {[%emt 0:00:00]} 0-1